Cogmind - Beta 16 @@@ ROGUE MODE // 2026.02.07 @ 21:03:39 Player: Moddy Result: Destroyed by P-60 Hacker with Shock Rifle Performance ------------- Evolutions (4) 2000 Regions Visited (11) 2200 Robots Destroyed (83) 415 Value Destroyed (2995) 2995 Prototype IDs (31) 620 Alien Tech Used (0) 0 Bonus (339) 339 TOTAL SCORE: 8569 Bonus ------- High Alert Combat Kills 39 Aligned with FarCom 300 Cogmind --------- Core Integrity 0/850 Matter 254/450 Energy 310/310 System Corruption 25% Temperature Cool (0) Movement Hovering (132) Ox1 Location -6/Factory Parts ------- > --- POWER (1) -------- Fission Core > --- PROPULSION (5) --- Improved Carbon-fiber Leg Improved Carbon-fiber Leg Gravmag System Gravmag System Gravmag System > --- UTILITY (6) ------ Improved Heat Sink Large Storage Unit Compact Matter Pod Advanced Visual Processing Unit Advanced Signal Interpreter Graphene Brace > --- WEAPON (3) ------- Compact Ion Cannon Compact Ion Cannon Shock Maul > --- INVENTORY (15) --- Fission Core Improved Carbon-fiber Leg Power Amplifier Compact Battery (200) Advanced Weight Redist. System Matter Filter Energy Filter Particle Charger Improved Field Recycling Unit (107) Shock Rifle Improved Spread Laser Compact Ion Cannon Gauss Rifle Hypervelocity Gauss Rifle Peak State ------------ > --- POWER ------------ Angular Momentum Engine > --- PROPULSION ------- Improved Medium Treads Carbon-fiber Leg Armored Leg Potential Leg Potential Leg > --- UTILITY ---------- Advanced Heat Sink Large Storage Unit Advanced Visual Processing Unit Advanced Signal Interpreter Layered Medium Armor Plating Graphene Brace > --- WEAPON ----------- Gatling Laser Improved Spread Laser Shock Maul > --- INVENTORY -------- Deuterium Engine Nuclear Core Improved VSS Leg Power Amplifier Compact Battery Compact Matter Pod Matter Filter Particle Charger Improved Core Shielding Improved Field Recycling Unit Gauss Rifle Hypervelocity Gauss Rifle Proton Missile Launcher Long-range Missile Launcher Shock Maul [Rating: 85] Favorites ----------- Power Angular Momentum Engine Engine Angular Momentum Engine Power Core Nuclear Core Propulsion Potential Leg Treads Armored Treads Leg Potential Leg Wheel Wheel Hover Unit Gravmag System Flight Unit Improved Cesium-ion Thruster Utility Large Storage Unit Device Cooling System Storage Large Storage Unit Processor Signal Interpreter Protection Hardened Medium Armor Plating Weapon Assault Rifle Energy Gun Heavy EM Shotgun Energy Cannon Compact Ion Cannon Ballistic Gun Assault Rifle Ballistic Cannon Assault Cannon Launcher Long-range Missile Launcher Special Weapon Mining Laser Impact Weapon Shock Maul Build | -11 -10 -10 -9 -9 -9 -8 -8 -7 -6 -6 -6 ------- Run | Yrd Mat Min Mat Min Exi Min Mat Fac Fac Was Fac Slots Evolved 8 | . . . 2 . . . 2 2 2 . . Power . | . . . . . . . . . . . . Propulsion 3 | . . . 1 . . . . 1 1 . . Utility 4 | . . . 1 . . . 2 . 1 . . Weapon 1 | . . . . . . . . 1 . . . Parts Attached 83 | . . 4 9 . 4 5 13 1 11 . 36 Power 8 | . . 1 1 . . 1 2 . 1 . 2 Engine 5 | . . 1 1 . . 1 . . 1 . 1 Core 3 | . . . . . . . 2 . . . 1 Reactor . | . . . . . . . . . . . . Propulsion 24 | . . . 4 . 4 1 . . 2 . 13 Treads 4 | . . . . . 1 . . . 1 . 2 Leg 11 | . . . 1 . 3 1 . . 1 . 5 Wheel 3 | . . . 3 . . . . . . . . Hover 3 | . . . . . . . . . . . 3 Flight 3 | . . . . . . . . . . . 3 Utility 25 | . . 2 3 . . . 6 . 4 . 10 Device 8 | . . . 1 . . . 2 . 1 . 4 Storage 5 | . . 2 . . . . . . . . 3 Processor 4 | . . . 1 . . . 1 . 2 . . Hackware . | . . . . . . . . . . . . Protection 8 | . . . 1 . . . 3 . 1 . 3 Artifact . | . . . . . . . . . . . . Weapon 26 | . . 1 1 . . 3 5 1 4 . 11 Energy Gun 7 | . . . . . . . 2 1 2 . 2 Energy Cannon 3 | . . . . . . . . . . . 3 Ballistic Gun 5 | . . . . . . 1 1 . 1 . 2 Ballistic Cannon 5 | . . 1 . . . 2 1 . 1 . . Launcher 3 | . . . . . . . 1 . . . 2 Special Weapon 1 | . . . 1 . . . . . . . . Impact Weapon 2 | . . . . . . . . . . . 2 Slashing Weapon . | . . . . . . . . . . . . Piercing Weapon . | . . . . . . . . . . . . Special Melee Weapon . | . . . . . . . . . . . . Unidentified Prototypes 8 | . . . . . . . 3 . 1 . 4 Parts Lost 24 | . . . 1 . . 1 3 . 2 . 17 Power 3 | . . . . . . . . . . . 3 Propulsion 6 | . . . 1 . . . . . . . 5 Utility 6 | . . . . . . . 1 . 2 . 3 Weapon 9 | . . . . . . 1 2 . . . 6 Highest Loss Streak 6 | . . . 1 . . 1 3 . 2 . 6 To Critical Strikes . | . . . . . . . . . . . . Average Backups 14 | . 6 9 14 15 14 14 14 13 14 15 13 Power 1 | . 1 1 2 2 2 2 2 2 2 2 1 Propulsion 3 | . 4 5 4 4 3 4 3 2 1 2 1 Utility 6 | . . . 4 6 6 6 6 8 7 7 6 Weapon 2 | . 1 2 3 3 3 1 2 1 2 3 3 Tool/Special . | . . . . . . . . . . . . Unused Backups 36 | . . 5 2 1 . 3 3 2 4 1 15 Power 6 | . . 2 1 . . . . 1 . . 2 Propulsion 6 | . . 1 . 1 . 1 . . 1 . 2 Utility 14 | . . . . . . . 3 1 1 1 8 Weapon 10 | . . 2 1 . . 2 . . 2 . 3 Tool/Special . | . . . . . . . . . . . . Average Slot Usage (%) 96 | . 85 91 99 100 100 100 99 99 99 100 87 Engine 6 | . 14 14 11 11 11 11 3 . 5 6 4 Core 2 | . . . . . . . 5 7 . . 1 Treads 5 | . . . . . 3 11 9 7 6 6 4 Leg 20 | . 28 28 30 . 6 22 18 22 26 26 16 Wheel 2 | . . . 1 33 23 . . . . . . Device 7 | . . . 1 . . . 9 15 15 13 10 Storage 10 | . 14 20 16 11 11 11 9 7 6 6 8 Processor 11 | . . . 5 11 11 11 17 7 9 13 13 Protection 7 | . . . 9 11 11 11 9 7 5 6 4 Energy Gun 3 | . . . . . . . 3 15 6 6 4 Ballistic Gun 6 | . 28 17 11 11 11 8 . 7 10 13 3 Ballistic Cannon 7 | . . 10 10 11 11 13 14 . 1 . . Peak Build Rating 85 | . 6 12 17 17 37 39 49 57 77 77 85 Average Rating 45 | . 6 9 16 17 23 37 45 55 72 76 67 On Entrance 33 | 6 6 6 12 17 17 37 38 49 57 77 77 Avg Prop Armor Cover (%) 10 | . . . . . 8 8 8 7 12 12 12 Naked Turns . | . . . . . . . . . . . . Heaviest Build 66 | 12 12 36 46 44 44 48 48 49 62 57 66 Greatest Support 90 | 20 20 20 30 30 60 60 60 75 90 60 76 Greatest Overweight (x) 16 | . . 1 2 1 1 . . . 1 . 16 Average Overweight (x) . | . . . 1 1 . . . . . . . Largest Inventory Capacity 15 | . 8 15 15 15 15 15 15 15 15 15 15 Average Capacity 14 | . 8 11 15 15 15 15 15 15 15 15 15 Most Carried 15 | . 7 15 15 15 15 15 15 15 15 15 15 Average Carried 14 | . 6 9 14 15 14 14 14 13 14 14 13 Final Capacity 15 | 8 8 15 15 15 15 15 15 15 15 15 15 Final Carried 15 | 6 7 15 15 15 15 15 15 15 15 15 14 Class Distribution -------------------- 67% | Mutant 16% | Skirmisher 5% | Scavenger-Tank 4% | Scavenger-Mutant 3% | Derelict-Mutant Dominant Class ---------------- Mutant | -10/Materials Mutant | -10/Mines Mutant | -9/Materials Mutant | -9/Mines Mutant | -9/Exiles Mutant | -8/Mines Mutant | -8/Materials Skirmisher | -7/Factory Skirmisher | -6/Factory Skirmisher | -6/Waste Mutant | -6/Factory Resources | -11 -10 -10 -9 -9 -9 -8 -8 -7 -6 -6 -6 ----------- Run | Yrd Mat Min Mat Min Exi Min Mat Fac Fac Was Fac Matter Collected 3031 | 200 . 197 477 187 . 294 437 114 268 . 857 Remotely . | . . . . . . . . . . . . Salvage Created 2883 | . . 84 432 . . 159 503 58 516 . 1131 Parts 158 | . . 4 27 . . 13 31 3 26 . 54 Haulers Intercepted 5 | . . . 1 . . . 2 . . . 2 Recyclers Shooed 6 | . . . 1 . . 1 1 . . . 3 Parts Field Recycled 7 | . . . . . . . . . . . 7 Retrieved Matter 127 | . . . . . . . . . . . 127 Parts Self-Destructed . | . . . . . . . . . . . . Prevented . | . . . . . . . . . . . . Parts Restored . | . . . . . . . . . . . . Kills | -11 -10 -10 -9 -9 -9 -8 -8 -7 -6 -6 -6 ------- Run | Yrd Mat Min Mat Min Exi Min Mat Fac Fac Was Fac Combat Hostiles Destroyed 60 | . . 3 12 . . 9 12 1 11 . 12 Melee 2 | . . . . . . . . . . . 2 Guns 20 | . . . 6 . . 2 3 1 5 . 3 Cannons 28 | . . 3 6 . . 7 8 . 3 . 1 AOE 7 | . . . . . . . 1 . 3 . 3 Classes Destroyed 14 | . . 1 6 . . . 2 . 3 . 2 Worker 7 | . . . . . . . . . 1 . 6 Builder 3 | . . . 2 . . . . . . . 1 Hauler 5 | . . . 1 . . . 2 . . . 2 Recycler 4 | . . . 1 . . . . . . . 3 Operator 1 | . . . . . . . . . . . 1 Watcher 3 | . . . 1 . . . 1 . 1 . . Swarmer 10 | . . . 4 . . 6 . . . . . Grunt 28 | . . 3 6 . . 3 6 . 7 . 3 Duelist 1 | . . . . . . . . . 1 . . Sentry 7 | . . . 2 . . . 4 . . . 1 Specialist 3 | . . . . . . . . . . . 3 Hunter 2 | . . . . . . . 1 1 . . . Programmer 8 | . . . . . . . . . 3 . 5 Heavy 1 | . . . . . . . 1 . . . . Best Kill Streak 6 | . . 2 6 . . 3 3 1 4 . 6 Combat Bots Only 4 | . . 2 4 . . 3 2 1 3 . 3 Max Kills in Single Turn 2 | . . 1 1 . . 1 1 1 2 . 2 Gunslinging . | . . . . . . . . . . . . Exploded 2 | . . . . . . . 1 . 1 . 2 Melee 1 | . . . . . . . . . . . 1 Uniques/NPCs Destroyed . | . . . . . . . . . . . . Combat | -11 -10 -10 -9 -9 -9 -8 -8 -7 -6 -6 -6 -------- Run | Yrd Mat Min Mat Min Exi Min Mat Fac Fac Was Fac Hostile Shots Fired 603 | . . 10 69 . . 46 80 4 88 . 306 Missed 213 | . . 2 17 . . 13 25 2 32 . 122 Hits 390 | . . 8 52 . . 33 55 2 56 . 184 Melee 1 | . . . . . . . . . . . 1 Projectile 389 | . . 8 52 . . 33 55 2 56 . 183 AOE 2 | . . . . . . . 1 . . . 1 Critical Strikes 14 | . . 1 . . . 1 3 . 3 . 6 Actively Blocked 9 | . . . . . . . . . 3 . 6 Part Disruptions 4 | . . . . . . . . . 1 . 3 Damage Taken 6302 | . . 109 514 . . 361 1322 13 957 . 3026 Core 1089 | . . 14 44 . . 40 137 . 102 . 752 Absorbed by Shields . | . . . . . . . . . . . . Redirected to Shielding 100 | . . . . . . . . . . . 100 Core Remaining (%) 89 | 100 . 94 . . . 79 75 100 . . . Volleys Fired 252 | . . 8 57 . . 25 67 2 40 . 53 Largest 3 | . . 2 2 . . 2 2 3 3 . 3 Hottest 180 | . . 60 100 . . 77 93 155 149 . 180 Shots Fired 453 | . . 16 110 . . 50 111 6 79 . 81 Gun 248 | . . 8 53 . . 14 33 6 63 . 71 Cannon 192 | . . 8 53 . . 36 76 . 16 . 3 Launcher 9 | . . . . . . . 2 . . . 7 Special 4 | . . . 4 . . . . . . . . Kinetic 323 | . . 16 106 . . 50 80 2 59 . 10 Thermal 106 | . . . 4 . . . 24 2 12 . 64 Explosive 7 | . . . . . . . 2 . . . 5 Electromagnetic 17 | . . . . . . . 5 2 8 . 2 Robot Hit Streak 19 | . . 4 11 . . 8 19 7 10 . 14 Robot Miss Streak 17 | . . 2 6 . . 17 14 1 5 . 6 Penetration Max 1 | . . . . . . . . . . . 1 Secondary Targets . | . . . . . . . . . . . . Shots Hit Robots 289 | . . 10 51 . . 32 71 5 49 . 71 Core Hits 210 | . . 4 22 . . 29 40 3 39 . 73 Critical Kills 7 | . . 1 2 . . . . . 2 . 2 Critical Parts Destroyed 12 | . . 1 1 . . 2 . . 2 . 6 Critical Strikes 21 | . . 2 3 . . 2 2 . 4 . 8 Destroy 12 | . . 2 3 . . 2 . . 4 . 1 Blast 2 | . . . . . . . 2 . . . . Smash 7 | . . . . . . . . . . . 7 Melee Attacks 15 | . . . . . . . . . . . 15 Impact 15 | . . . . . . . . . . . 15 Slashing . | . . . . . . . . . . . . Piercing . | . . . . . . . . . . . . Sneak Attacks 1 | . . . . . . . . . . . 1 Combat Hostiles . | . . . . . . . . . . . . Follow-up Attacks . | . . . . . . . . . . . . Damage Inflicted 7323 | . . 207 1114 . . 524 1561 100 1465 . 2352 Guns 2904 | . . 51 395 . . 71 457 100 623 . 1207 Cannons 2530 | . . 156 714 . . 453 875 . 264 . 68 Explosions 1340 | . . . . . . . 229 . 538 . 573 Melee 504 | . . . . . . . . . . . 504 Ramming 45 | . . . 5 . . . . . 40 . . Kinetic 3392 | . . 207 1109 . . 524 924 15 568 . 45 Thermal 1882 | . . . . . . . 288 47 317 . 1230 Explosive 1171 | . . . . . . . 229 . 450 . 492 Electromagnetic 329 | . . . . . . . 120 38 90 . 81 Impact 504 | . . . . . . . . . . . 504 Slashing . | . . . . . . . . . . . . Piercing . | . . . . . . . . . . . . Highest Corruption 25 | . . . . . . . . . 7 12 25 Average Corruption 11 | . . . . . . . . . 2 11 16 Corruption Purged . | . . . . . . . . . . . . Corruption Blocked . | . . . . . . . . . . . . Effects 98 | . . . . . . . . . 17 5 76 Message Errors 23 | . . . . . . . . . 1 . 22 Matter Fused 22 | . . . . . . . . . 7 . 15 Heat Flow Errors 7 | . . . . . . . . . 1 1 5 Energy Discharges 10 | . . . . . . . . . . . 10 Parts Rejected 6 | . . . . . . . . . 2 . 4 Parts Fused 2 | . . . . . . . . . . 1 1 Data Loss (minor) 11 | . . . . . . . . . 2 1 8 Data Loss (major) 4 | . . . . . . . . . 1 . 3 Misfires 4 | . . . . . . . . . 1 . 3 Alerts 1 | . . . . . . . . . 1 . . Misdirections 5 | . . . . . . . . . . 2 3 Weapon Failures 3 | . . . . . . . . . 1 . 2 Overload Shots . | . . . . . . . . . . . . Overflow Damage 335 | . . . 14 . . 3 . . 65 . 253 Projectiles 17 | . . . 14 . . 3 . . . . . Explosions 75 | . . . . . . . . . 65 . 10 Melee 243 | . . . . . . . . . . . 243 Knockbacks 44 | . . 1 9 . . 10 10 . 12 . 2 Impact 2 | . . . . . . . . . . . 2 Kinetic 42 | . . 1 9 . . 10 10 . 12 . . Secondary . | . . . . . . . . . . . . Self-Inflicted Damage 233 | . . . . . . . 61 . . . 172 Shots 8 | . . . . . . . 2 . . . 6 Rammed . | . . . . . . . . . . . . Targets Rammed 11 | . . . 1 . . . . . 10 . . Kicked 11 | . . . 1 . . . . . 10 . . Crushed . | . . . . . . . . . . . . Highest Temperature 305 | . . 75 108 . . 305 16 42 171 136 295 Average Temperature 58 | . . 37 31 . . 132 9 21 22 74 62 Received Heat Transfer 1323 | . . 81 96 . . 117 252 . 279 . 498 Effects 1 | . . . . . . . . . . . 1 Energy Bleed 1 | . . . . . . . . . . . 1 Siege Activations . | . . . . . . . . . . . . Martial Activations . | . . . . . . . . . . . . Shielding Activations . | . . . . . . . . . . . . Robots Disrupted 1 | . . . . . . . . . . . 1 Combat Hostiles 1 | . . . . . . . . . . . 1 Robots Corrupted 3 | . . . . . . . . . . . 3 Combat Hostiles 3 | . . . . . . . . . . . 3 Parts Fried 3 | . . . . . . . 1 . . . 2 Impact Corruptions 6 | . . . . . . . . . . . 6 Robots Melted . | . . . . . . . . . . . . Combat Hostiles . | . . . . . . . . . . . . Parts Melted 3 | . . . . . . . . . . . 3 Heat Transferred 2541 | . . . . . . . 629 100 330 . 1482 Parts Sabotaged 4 | . . . . . . . . . . . 4 Parts Stolen . | . . . . . . . . . . . . Parts Stripped . | . . . . . . . . . . . . Power Chain Reactions . | . . . . . . . . . . . . Alert | -11 -10 -10 -9 -9 -9 -8 -8 -7 -6 -6 -6 ------- Run | Yrd Mat Min Mat Min Exi Min Mat Fac Fac Was Fac Maximum Alert Level 2 | . . . . . . . 1 . 2 . . Low Security (%) 89 | . 100 100 100 100 . 100 95 100 33 100 100 Level 1 6 | . . . . . . . 4 . 40 . . Level 2 3 | . . . . . . . . . 26 . . Level 3 . | . . . . . . . . . . . . Level 4 . | . . . . . . . . . . . . Level 5 . | . . . . . . . . . . . . High Security . | . . . . . . . . . . . . Max Security . | . . . . . . . . . . . . Peak Influence 448 | . . 41 106 36 . 100 209 92 448 129 109 Initial 129 | . . . 1 36 . . . 92 14 129 62 Average 67 | . . 6 36 5 . 39 43 27 257 113 42 Influence Increases 2463 | . . 82 380 . . 230 455 48 720 . 548 Destroy 0b10 Robot/C 1200 | . . 60 240 . . 180 240 20 220 . 240 Destroy 0b10 Robot/NC 115 | . . . 25 . . . 15 . 10 . 65 Destroy Leader 336 | . . 20 64 . . 30 86 10 62 . 64 Successful Hack 107 | . . . . . . . 51 18 29 . 9 Disable Machine 345 | . . . 30 . . . 15 . 240 . 60 Destroy Structure 135 | . . 2 21 . . 5 18 . 54 . 35 Partial Spotted 15 | . . . . . . . 15 . . . . Lose Combat Pursuer 210 | . . . . . . 15 15 . 105 . 75 Influence Decreases 2407 | . . 76 291 95 . 230 251 222 379 282 581 Entered New Map 461 | . . . 5 59 . . . 112 16 242 27 Time Decay 1727 | . . 76 276 36 . 220 221 110 323 40 425 Lost Part 199 | . . . 10 . . 10 30 . 20 . 129 Lost Ally 20 | . . . . . . . . . 20 . . Squads Dispatched 20 | . . 1 3 . . . 2 1 5 . 8 Investigation 2 | . . 1 1 . . . . . . . . Extermination 7 | . . . . . . . . . 3 . 4 Reinforcement 9 | . . . 2 . . . 2 1 2 . 2 Assault . | . . . . . . . . . . . . Garrison 2 | . . . . . . . . . . . 2 Intercept . | . . . . . . . . . . . . Searches Triggered . | . . . . . . . . . . . . Construction Impeded . | . . . . . . . . . . . . Haulers Reinforced . | . . . . . . . . . . . . Active Scanning Responses . | . . . . . . . . . . . . Cargo Convoy Interrupts 1 | . . . . . . . . . . . 1 Stealth | -11 -10 -10 -9 -9 -9 -8 -8 -7 -6 -6 -6 --------- Run | Yrd Mat Min Mat Min Exi Min Mat Fac Fac Was Fac Distress Signals 11 | . . . 2 . . 1 1 . 4 . 3 Communications Jammed . | . . . . . . . . . . . . Distress Signals . | . . . . . . . . . . . . Times Spotted 119 | . . 3 23 . . 12 23 2 19 6 31 Peak Tracking Total 8 | . . 2 5 . . 4 4 3 5 6 8 Tactical Retreats 11 | . . . . . . 1 1 . 4 . 5 Traps | -11 -10 -10 -9 -9 -9 -8 -8 -7 -6 -6 -6 ------- Run | Yrd Mat Min Mat Min Exi Min Mat Fac Fac Was Fac Traps Triggered 3 | . . . 1 . . . . . 2 . . Indirectly . | . . . . . . . . . . . . Trap Hack Attempts . | . . . . . . . . . . . . Triggered . | . . . . . . . . . . . . Disarmed . | . . . . . . . . . . . . Reprogrammed . | . . . . . . . . . . . . Reused . | . . . . . . . . . . . . Traps Extracted . | . . . . . . . . . . . . Installed . | . . . . . . . . . . . . Triggered . | . . . . . . . . . . . . Machines | -11 -10 -10 -9 -9 -9 -8 -8 -7 -6 -6 -6 ---------- Run | Yrd Mat Min Mat Min Exi Min Mat Fac Fac Was Fac Machines Disabled 24 | . . . 3 . . . 1 . 16 . 4 Max in Single Turn 3 | . . . 1 . . . 1 . 3 . 2 Machines Repaired . | . . . . . . . . . . . . Machines Dismantled . | . . . . . . . . . . . . Machines Sabotaged . | . . . . . . . . . . . . Overloaded Fab Kills . | . . . . . . . . . . . . Hacking | -11 -10 -10 -9 -9 -9 -8 -8 -7 -6 -6 -6 --------- Run | Yrd Mat Min Mat Min Exi Min Mat Fac Fac Was Fac Machines Accessed 26 | . 1 1 . . 5 . 7 4 3 . 5 Terminals 13 | . 1 . . . . . 5 2 3 . 2 Fabricators 1 | . . . . . . . . 1 . . . Repair Stations 1 | . . . . . . . 1 . . . . Recycling Units 4 | . . . . . . . 1 1 . . 2 Scanalyzers 1 | . . . . . . . . . . . 1 Garrison Access . | . . . . . . . . . . . . Total Hacks 99 | . 2 1 . . 50 . 18 7 6 . 15 Successful 78 | . . 1 . . 50 . 10 5 3 . 9 Failed 21 | . 2 . . . . . 8 2 3 . 6 Catastrophic 5 | . . . . . . . 2 1 2 . . Database Lockouts . | . . . . . . . . . . . . Manual 20 | . 2 . . . 1 . 8 3 3 . 3 Terminals 32 | . 2 . . . . . 15 3 6 . 6 Fabricators 2 | . . . . . . . . 2 . . . Repair Stations 1 | . . . . . . . 1 . . . . Recycling Units 7 | . . . . . . . 2 2 . . 3 Scanalyzers 6 | . . . . . . . . . . . 6 Garrison Access . | . . . . . . . . . . . . Terminal Hacks 58 | . . 1 . . 50 . 3 1 1 . 2 Record 49 | . . . . . 49 . . . . . . Open Door 1 | . . 1 . . . . . . . . . Open DSF 1 | . . . . . . . . 1 . . . Scanalyzer Index 1 | . . . . . . . . . . . 1 Locate Traps 2 | . . . . . . . 1 . 1 . . Transport Status 1 | . . . . . . . 1 . . . . Zone Layout 2 | . . . . . . . 1 . . . 1 Proto ID Catalog 1 | . . . . . 1 . . . . . . Fabricator Hacks 1 | . . . . . . . . 1 . . . Build 1 | . . . . . . . . 1 . . . Repair Station Hacks . | . . . . . . . . . . . . Recycling Unit Hacks 3 | . . . . . . . 1 1 . . 1 Retrieve Matter 1 | . . . . . . . . . . . 1 Retrieve Components 2 | . . . . . . . 1 1 . . . Scanalyzer 5 | . . . . . . . . . . . 5 Retrieve Study 5 | . . . . . . . . . . . 5 Garrison Access Hacks . | . . . . . . . . . . . . Unauthorized Hacks 11 | . . . . . . . 6 2 2 . 1 Terminals 9 | . . . . . . . 5 1 2 . 1 Botnet 9 | . . . . . . . 5 1 2 . 1 Fabricators . | . . . . . . . . . . . . Repair Stations 1 | . . . . . . . 1 . . . . Mechanics 1 | . . . . . . . 1 . . . . Recycling Units 1 | . . . . . . . . 1 . . . Recyclers 1 | . . . . . . . . 1 . . . Scanalyzers . | . . . . . . . . . . . . Garrison Access . | . . . . . . . . . . . . Data Cores Recovered . | . . . . . . . . . . . . Used . | . . . . . . . . . . . . Hacking Detections 16 | . 1 . . . . . 6 2 2 . 5 Full Trace Events . | . . . . . . . . . . . . Feedback Events . | . . . . . . . . . . . . Feedback Blocked . | . . . . . . . . . . . . Robot Schematics Acquired . | . . . . . . . . . . . . Robots Built 1 | . . . . . . . . 1 . . . Authchips . | . . . . . . . . . . . . Time 81 | . . . . . . . . 81 . . . Total Robot Build Rating 1 | . . . . . . . . 1 . . . Part Schematics Acquired . | . . . . . . . . . . . . Parts Built . | . . . . . . . . . . . . Authchips . | . . . . . . . . . . . . Time . | . . . . . . . . . . . . Total Part Build Rating . | . . . . . . . . . . . . Part Studies Acquired 5 | . . . . . . . . . . . 5 Parts Repaired . | . . . . . . . . . . . . Time . | . . . . . . . . . . . . Parts Recycled . | . . . . . . . . . . . . Recycled Matter . | . . . . . . . . . . . . Retrieved Matter . | . . . . . . . . . . . . Retrieved Components 7 | . . . . . . . 4 3 . . . Parts Scanalyzed . | . . . . . . . . . . . . Part Schematics Acquired . | . . . . . . . . . . . . Parts Damaged . | . . . . . . . . . . . . Bothacking | -11 -10 -10 -9 -9 -9 -8 -8 -7 -6 -6 -6 ------------ Run | Yrd Mat Min Mat Min Exi Min Mat Fac Fac Was Fac Used RIF Installer . | . . . . . . . . . . . . Robots Hacked . | . . . . . . . . . . . . Non-combat . | . . . . . . . . . . . . Combat . | . . . . . . . . . . . . Robot Hacks Applied . | . . . . . . . . . . . . Relay Couplers Released . | . . . . . . . . . . . . Fabnet Peak Effective % . | . . . . . . . . . . . . Robots Rewired 1 | . . . . . . . . . 1 . . Allies Hacked . | . . . . . . . . . . . . Hacks Repelled . | . . . . . . . . . . . . Allies | -11 -10 -10 -9 -9 -9 -8 -8 -7 -6 -6 -6 -------- Run | Yrd Mat Min Mat Min Exi Min Mat Fac Fac Was Fac Total Allies 2 | . . . . . . . . 1 1 . . Largest Group 1 | . . . . . . . . 1 1 . . Highest-Rated Group 34 | . . . . . . . . 10 34 . . Highest-Rated Ally 34 | . . . . . . . . 10 34 . . Total Orders 6 | . . . . . . . . 1 5 . . STAY 2 | . . . . . . . . . 2 . . FOLLOW 3 | . . . . . . . . . 3 . . PICKUP 1 | . . . . . . . . 1 . . . Ally Attacks 4 | . . . . . . . . . 4 . . Total Damage 222 | . . . . . . . . . 222 . . Kills . | . . . . . . . . . . . . Allies Corrupted . | . . . . . . . . . . . . Allies Melted . | . . . . . . . . . . . . Intel | -11 -10 -10 -9 -9 -9 -8 -8 -7 -6 -6 -6 ------- Run | Yrd Mat Min Mat Min Exi Min Mat Fac Fac Was Fac Active Infowar (turns) 3355 | . . . 153 . . . 99 356 1036 81 1630 Optics 2294 | . . . . . . . . . 583 81 1630 Sensors 153 | . . . 153 . . . . . . . . Jamming 908 | . . . . . . . 99 356 453 . . Robot Analysis Total . | . . . . . . . . . . . . Derelict Logs Recovered . | . . . . . . . . . . . . Drone Launches . | . . . . . . . . . . . . Drone Recoveries . | . . . . . . . . . . . . Exploration | -11 -10 -10 -9 -9 -9 -8 -8 -7 -6 -6 -6 ------------- Run | Yrd Mat Min Mat Min Exi Min Mat Fac Fac Was Fac Turns Passed 8141 | . 53 480 915 316 334 607 2301 356 1068 81 1630 Spaces Moved 4274 | 1 44 239 334 141 339 507 643 246 818 137 825 Core 8 | . . . . . . . . . . . 8 Treads . | . . . . . . . . . . . . Legs 3647 | 1 44 239 293 . 102 507 643 246 818 137 617 Wheels 419 | . . . 41 141 237 . . . . . . Hover 200 | . . . . . . . . . . . 200 Flight . | . . . . . . . . . . . . Fastest Speed 45 | 120 120 120 95 95 90 90 90 100 90 45 90 Average Speed 111 | 120 120 150 178 95 93 90 90 100 96 55 140 Slowest Speed 850 | 120 120 190 260 95 170 90 90 100 170 90 850 Overloaded Moves 106 | . . . . . . . . . . 106 . Propulsion Burnouts . | . . . . . . . . . . . . Robots Hopped . | . . . . . . . . . . . . Potential Cave-ins . | . . . . . . . . . . . . Cave-ins Triggered . | . . . . . . . . . . . . Exploration Rate (%) 39 | 2 9 54 26 39 72 75 57 5 23 85 27 Regions Visited 11 Branch Regions 4 Pre-discovered Areas 1 | . . . . . 1 . . . . . . Known Exits Taken 6 | . . . 1 1 1 1 1 1 . . . Unknown Exits Taken 3 | 1 1 1 . . . . . . . . . Scrap Searched 4 | . . 1 . 2 . 1 . . . . . Spaces Dug 13 | . . . 5 . . . 8 . . . . Terrain Destroyed 134 | . . 2 21 . . 6 22 . 49 . 34 Melee . | . . . . . . . . . . . . Projectile 45 | . . 2 21 . . 6 15 . . . 1 AOE 89 | . . . . . . . 7 . 49 . 33 Terrain Rammed . | . . . . . . . . . . . . Walls Destroyed . | . . . . . . . . . . . . Machines Disabled . | . . . . . . . . . . . . Actions | -11 -10 -10 -9 -9 -9 -8 -8 -7 -6 -6 -6 --------- Run | Yrd Mat Min Mat Min Exi Min Mat Fac Fac Was Fac Total 7178 | . 44 345 529 325 354 609 2259 356 1035 142 1180 Wait 2405 | . . 79 114 181 10 65 1513 97 137 4 205 Move 4264 | . 43 238 333 140 338 506 642 245 818 136 825 Hop . | . . . . . . . . . . . . Pick Up 65 | . 1 11 5 2 1 3 10 5 8 1 18 Fast Attach 22 | . . 2 1 . . . 1 . 2 . 16 Attach 25 | . . . 3 . 1 1 4 2 4 . 10 Detach 1 | . . . 1 . . . . . . . . Swap 64 | . . 2 10 . 3 5 11 1 9 . 23 Drop 53 | . . 5 4 2 1 4 11 4 6 1 15 Fire 252 | . . 8 57 . . 25 67 2 40 . 53 Melee 15 | . . . . . . . . . . . 15 Ram . | . . . . . . . . . . . . Kick 11 | . . . 1 . . . . . 10 . . Crush . | . . . . . . . . . . . . Escape Stasis . | . . . . . . . . . . . . Rewire 1 | . . . . . . . . . 1 . . Trap . | . . . . . . . . . . . . Miscellaneous . | . . . . . . . . . . . . Route ------- -11/Scrapyard -10/Materials -10/Mines -9/Materials -9/Mines -9/Exiles (discovered 2 exits: *Min x2) -8/Mines (discovered 2 exits: *Mat x2) -8/Materials (discovered 2 exits: *Fac / *Sto) -7/Factory -6/Factory -6/Waste -6/Factory History --------- Turn | Location | Event 1 | -11/Scrapyard | Discovered new exit (range 0) 1 | -11/Scrapyard | Entered Materials 9 | -10/Materials | Discovered new exit (range 16) 54 | -10/Materials | Entered Mines 55 | -10/Mines | Met a Derelict bent on vengeance 172 | -10/Mines | A weapon hastily lodged in a ceiling crevice suddenly fell to the ground 304 | -10/Mines | Found DCF Scrap (13 items) 310 | -10/Mines | Build established: Mutant 443 | -10/Mines | Discovered new exit (range 8) 470 | -10/Mines | Met a Derelict shopkeep closing up shop 534 | -10/Mines | Entered Materials 534 | -9/Materials | Evolved 2 slots: Propulsion x1, Utility x1 613 | -9/Materials | Build established: Derelict-Mutant 941 | -9/Materials | Build established: Mutant 967 | -9/Materials | Discovered new exit (range 7) 1448 | -9/Materials | Identified exit to Mines 1449 | -9/Materials | Entered Mines 1734 | -9/Mines | Found a hidden stash of uninstalled traps 1760 | -9/Mines | Deemed a non-threat by the Exiles lab entrance 1761 | -9/Mines | Discovered new exit (range 5) 1764 | -9/Mines | Identified exit to Exiles 1765 | -9/Mines | Entered Exiles 1783 | -9/Exiles | Discovered new exit (range 14) 1798 | -9/Exiles | Met 8R-AWN 1811 | -9/Exiles | Met EX-HEX 1872 | -9/Exiles | Met EX-DEC 1895 | -9/Exiles | Learned location of Zion (-6) 1921 | -9/Exiles | Met EX-BIN 1935 | -9/Exiles | Aligned with FarCom system 1936 | -9/Exiles | Given EX-Vault access code 1985 | -9/Exiles | Opened EX-Vault 1991 | -9/Exiles | Found Potential Leg 1994 | -9/Exiles | Found Potential Leg 2019 | -9/Exiles | Warned to stay clear of 0b10 Research branches 2030 | -9/Exiles | Exiles lab attacked by MAIN.C 2076 | -9/Exiles | Discovered new exit (range 14) 2088 | -9/Exiles | Identified exit to Mines 2099 | -9/Exiles | Left Exiles lab with Potential Leg 2099 | -9/Exiles | Entered Mines 2454 | -8/Mines | Discovered new exit (range 6) 2459 | -8/Mines | Identified exit to Materials 2564 | -8/Mines | Discovered exit to Materials (range 12) 2706 | -8/Mines | Entered Materials 2706 | -8/Materials | Evolved 2 slots: Utility x2 4644 | -8/Materials | Discovered new exit (range 14) 4807 | -8/Materials | Discovered new exit (range 12) 4910 | -8/Materials | Lost 3 parts (1u2w) 4921 | -8/Materials | Identified exit to Storage 4948 | -8/Materials | Identified exit to Factory 5007 | -8/Materials | Entered Factory 5007 | -7/Factory | Evolved 2 slots: Propulsion x1, Weapon x1 5108 | -7/Factory | Fabricated A-02 Transporter (x1) 5268 | -7/Factory | Found Prototype Launcher 5302 | -7/Factory | Discovered new exit (range 15) 5308 | -7/Factory | Build established: Skirmisher 5312 | -7/Factory | Identified exit to DSF 5319 | -7/Factory | Identified exit to Factory 5363 | -7/Factory | Entered another Factory area 5363 | -6/Factory | Evolved 2 slots: Propulsion x1, Utility x1 5660 | -6/Factory | Build established: Scavenger-Tank 6149 | -6/Factory | Build established: Skirmisher 6431 | -6/Factory | Sucked down chute 6431 | -6/Factory | Entered Waste 6433 | -6/Waste | Spotted C-40 Crusher 6446 | -6/Waste | EMP discharged 6446 | -6/Waste | System corruption reached 10% 6470 | -6/Waste | Spotted C-40 Crusher 6484 | -6/Waste | Spotted C-40 Crusher 6485 | -6/Waste | Spotted C-40 Crusher 6485 | -6/Waste | Spotted C-40 Crusher 6502 | -6/Waste | Spotted C-40 Crusher 6505 | -6/Waste | Discovered new exit (range 14) 6512 | -6/Waste | Identified exit to Factory 6512 | -6/Waste | Entered Factory 7070 | -6/Factory | Garrison activated, responded to threat 7327 | -6/Factory | Garrison activated, responded to threat 7365 | -6/Factory | Cargo convoy interrupted 7455 | -6/Factory | Build established: Mutant 7516 | -6/Factory | Lost 6 parts (1p4n1u) 7612 | -6/Factory | Core integrity fell below 50% 7646 | -6/Factory | Lost 5 parts (1p1u3w) 7682 | -6/Factory | Core integrity fell below 20% 7698 | -6/Factory | Lost 5 parts (1p1n1u2w) 8063 | -6/Factory | Build established: Scavenger-Mutant 8142 | -6/Factory | Destroyed by P-60 Hacker with Shock Rifle Last Messages --------------- 08003_ Dropped Corrupted Mic. Fission Core. 08004_ Dropped Transport Network Coupler. 08007_ Acquired Hyp. Gauss Rifle+. 08017_ System corrupted: Matter fused (-10). 08032_ LKE4FEO>432J KIG927=O 08039_ ALERT: Potential suspicious activity detected, Programmers report to Factory Zone 4D. 08048_ System corrupted: Heat flow error (+152). 08064_ System corrupted: Component data lost. 08082_ K-01 Serf cleans the Fusion Modulator. 08086_ System corrupted: Energy discharge (-96). 08087_ Acquired Imp. Carbon-fiber Leg. 08088_ K-01 Serf cleans the Fusion Modulator. 08090_ Acquired Imp. Carbon-fiber Leg. 08093_ R-10 Processor collects Med. Treads. 08093_ Acquired Imp. Carbon-fiber Leg. 08096_ R-10 Processor collects Imp. Cesium-ion Thruster. 08108_ K-01 Serf cleans the Fusion Modulator. 08116_ System corrupted: Energy discharge (-114). 08131_ 01IWH8,ZTGI636ST|UPUGBLIQY4#P#> 7 JXRE Map ----- +----------------------------------------------------+ | ???????????????????????? ???????????????????????? | | ???????????????????????? ???????????????????????? | | ???????????????????????? ???????????????????????? | | ???????????????????????? ???????????????????????? | | ???????????????????????# ???????????????????????? | | ???????????????????????# ???????????????????????? | | ???????????????????????# ???????????????????????? | | ???????????????????????#! ???????????????????????? | | ??????????????????????? #??????????# ### ###### | | ???????????????????????# #??????????# | | ???????????????????????# #??????????# | | ???????????????????????# #??????????# | | ???????????????????????# #???????????# ###### | | ??????????????##########+###?????????????????????? | | ??????????????# #?????????????????????? | | ############### #?????????????????????? | | # [[ #?????????????????????? | | # [[ #?????????????????????? | | # [ #?????????????????????? | | # #?????????????????????? | | # #????????????????####+# | | ###+##### # #??????????????# | | # ## # """ """ #????????????????#### # | | # """ ## #k """ """ #?????????????????????? | | # """ ## + """ """ #?????????????????????? | | + """ ## #p @ #?#+#?????????????????? | | # ## ##########+### #???????????????? | | # """ ## #???????# #????????????##+# | | # """ ## #???????# Y ! ???+ | | # """ ## ?????? #######??????# | | # ## ##????#####+## #????????????# | | # """ ## #?????????????## ###????????????# | | # """ ## #??????????????# #??????????????# | | # """ ## #??????????????# #??????????????# | | # ## #??????????????# #???############ | | #######?# #??????????????# #???# ## | | ?######## ################ ##### ## | | ?# # ""## | | ?# # ""## | | ?????""" """" """" """" """" + """ T"## | | ?????""" """" """" """" """" # """ ""## | | ?? """" """" """" """" """" # """ ""## | | ?# """" """" """" """" """" # ## | | ## """" """" """ """" """" ###+########### | | """" """" """" """" """" | | """" """" ! """" """" """" | | ! | | | | | | ##^ ###+#############+################## | +----------------------------------------------------+ Best States ------------- Heat Dissipation 59 Energy Generation 20 Energy Capacity 310 Matter Stores 385 Matter Capacity 600 Sight Range 20 Robot Scan Range 14 Terrain Scan Density 10 Jamming Range 12 Armor Coverage 225 Core Shielding 30 Evasion (%) 66 Target Analysis 5 Recoil Reduction 1 Item Schematics ----------------- None Robot Schematics ------------------ None Fabricated ------------ A-02 Transporter | x1 | -7/Factory | Preloaded Repaired ---------- Nothing Studied --------- Hyp. Gauss Rifle | -6/Factory | Hacked Angular Momentum Engine | -6/Factory | Hacked Lrn. Missile Launcher | -6/Factory | Hacked Nuclear Core | -6/Factory | Hacked Imp. VSS Leg | -6/Factory | Hacked Alien Tech Used ----------------- None Achievements -------------- I Laugh At Your Crits Sixth Sense Challenges ------------ None Game ------ Seed BehemothExpertDoublenader Manual? 0 Play Time 01:23:33 Cumulative 41.7 hours Start 2026.02.07 @ 18:09:13 End 2026.02.07 @ 21:03:39 Sessions 1 Manual Loads 0 Difficulty Rogue Special Mode None Game No. 63 Rogue 63 Adventurer 0 Explorer 0 Win Type - Total 0 Types 0/0/0/0/0/0/0/0/0/0 Lore% 22 Gallery% 36 Achievement% 23 Wizard Run 0 Options --------- Layout 1 ASCII 0 Keyboard 0 Movement Mouse Keybinds 0 Fullscreen 2 Font 32/SmallcapsGlow Map View 77x35 Zoom Use 0% Tactical HUD 1 Map Filters NONE Filters NONE Steam 1 RUN: 84f9d562-0e0c-43b9-ad79-96e533f09256